Cogmind - Beta 16.1 @@@ ROGUE MODE // 2026.01.20 @ 18:40:28 Player: szymekc Result: Heading to fleet! Performance ------------- Evolutions (9) 4500 Regions Visited (19) 3800 Robots Destroyed (189) 945 Value Destroyed (8237) 8237 Prototype IDs (387) 7740 Alien Tech Used (5) 1000 Bonus (52218) 52218 TOTAL SCORE: 78440 Bonus ------- Triggered High Security 1000 High Alert Combat Kills 2547 Follower Combat Kills 14723 Registered with UFD 300 Met Warlord at Base 500 MAIN.C Attacked Warlord 500 Warlord Defense Kills 368 Found Hidden Lab 3000 Used Core Reset Matrix 3000 Scanned by Researcher 500 Pursued by Intercept 2500 Destroyed MAIN.C Guards 500 Met MAIN.C 5000 Destroyed MAIN.C Shell 5000 Destroyed MAIN.C 10000 Win 3000 Friendly Fire -220 Cogmind --------- Core Integrity 42/1600 Matter 298/300 Energy 146/150 System Corruption 23% Temperature Cool (8) Movement Hovering (57) Location To Fleet Rendezvous Parts ------- > --- POWER (3) -------- Micro Antimatter Reactor > --- PROPULSION (12) -- Combat Linear Gravjet Combat Linear Gravjet > --- UTILITY (4) ------ Experimental Weapon Cycler > --- WEAPON (7) ------- Companion Sword > --- INVENTORY (5) ---- Myomer Leg Centrium Leg AEGIS Remote Shield Dimensional Node Initializer CPS Tube (2) Peak State ------------ > --- POWER ------------ Graviton Reactor Vortex Chain Reactor > --- PROPULSION ------- Biometal Heavy Treads High-density Centrium Heavy Treads High-density Centrium Heavy Treads High-density Centrium Heavy Treads High-density Centrium Heavy Treads > --- UTILITY ---------- High-capacity Storage Unit Experimental Optical Array Experimental Core Analyzer AEGIS Remote Shield > --- WEAPON ----------- Warp Cannon 1B-0RG's Assimilator Companion Sword > --- INVENTORY -------- Light Antimatter Reactor Enhanced Armored Leg Enhanced Multireflex Exoskeleton Centrium Leg Experimental Matter Compressor Experimental Weapon Cycler Advanced Actuator Array Improved Transmission Jammer AEGIS Remote Shield Improved Point Defense System Experimental Hacking Suite System Mapper Experimental System Shield Dimensional Node Initializer Transdimensional Reconstructor Vortex Driver Gamma Bomb Array CPS Tube [Rating: 253] Favorites ----------- Power Improved Ion Engine Engine Improved Ion Engine Power Core Micro Fission Core Reactor Micro Antimatter Reactor Propulsion Enhanced Biometal Leg Treads Light Treads Leg Enhanced Biometal Leg Wheel Wheel Hover Unit Combat Linear Gravjet Flight Unit Flightbrick Utility High-capacity Storage Unit Device Advanced Sensor Array Storage High-capacity Storage Unit Processor Experimental Optical Array Hackware Experimental Hacking Suite Protection Light Armor Plating Weapon Companion Sword Energy Gun Improved EM Shotgun Energy Cannon Subdweller Beam Cannon Ballistic Gun Assault Rifle Ballistic Cannon Advanced Assault Cannon Launcher Gamma Bomb Array Special Weapon Advanced Remote Datajack Slashing Weapon Companion Sword Special Melee Weapon 1B-0RG's Assimilator Build | -11 -10 -10 -10 -7 -7 -5 -5 -5 -5 -4 -4 -4 -4 -3 -3 -2 -2 -1 -1 ------- Run | Yrd Mat Min Sub Rec Scr Fac Upp Upp War Pro Fac Arm Lab Res Tes Res Qua Acc Com Slots Evolved 18 | . . . . . . 10 . . . . 2 . . 2 . 2 . 2 . Power 1 | . . . . . . . . . . . 1 . . . . . . . . Propulsion 10 | . . . . . . 4 . . . . 1 . . 2 . 1 . 2 . Utility 2 | . . . . . . 2 . . . . . . . . . . . . . Weapon 5 | . . . . . . 4 . . . . . . . . . 1 . . . Parts Attached 211 | 7 9 3 11 10 2 37 2 1 23 6 2 14 7 14 9 13 5 20 16 Power 35 | 1 2 . 3 1 1 4 . . 4 . . 2 1 1 . 5 2 4 4 Engine 10 | 1 2 . 3 1 1 1 . . 1 . . . . . . . . . . Core 3 | . . . . . . 3 . . . . . . . . . . . . . Reactor 22 | . . . . . . . . . 3 . . 2 1 1 . 5 2 4 4 Propulsion 72 | 2 . . 2 3 . 14 2 1 5 3 1 6 1 9 4 3 2 9 5 Treads 18 | 2 . . . 2 . . . . . . . . . 3 3 2 2 1 3 Leg 32 | . . . . . . 7 2 1 5 2 1 6 . 6 . 1 . . 1 Wheel 5 | . . . 2 1 . 2 . . . . . . . . . . . . . Hover 13 | . . . . . . 1 . . . 1 . . 1 . 1 . . 8 1 Flight 4 | . . . . . . 4 . . . . . . . . . . . . . Utility 74 | 2 3 1 1 1 . 17 . . 12 3 . 6 5 4 5 1 1 6 6 Device 46 | 2 1 1 . 1 . 9 . . 7 2 . 6 4 2 2 . 1 2 6 Storage 10 | . 1 . 1 . . 3 . . 1 1 . . 1 . 1 . . 1 . Processor 11 | . . . . . . 4 . . 4 . . . . 2 . . . 1 . Hackware 4 | . . . . . . . . . . . . . . . 1 1 . 2 . Protection 3 | . 1 . . . . 1 . . . . . . . . 1 . . . . Artifact . | . . . . . . . . . . . . . . . . . . . . Weapon 30 | 2 4 2 5 5 1 2 . . 2 . 1 . . . . 4 . 1 1 Energy Gun 7 | 1 4 . 1 . . . . . 1 . . . . . . . . . . Energy Cannon 6 | . . . 2 1 . 1 . . 1 . . . . . . 1 . . . Ballistic Gun 3 | 1 . . 1 . . . . . . . 1 . . . . . . . . Ballistic Cannon 3 | . . . . 3 . . . . . . . . . . . . . . . Launcher 5 | . . 2 . . . . . . . . . . . . . 2 . . 1 Special Weapon 4 | . . . 1 1 . . . . . . . . . . . 1 . 1 . Impact Weapon . | . . . . . . . . . . . . . . . . . . . . Slashing Weapon 1 | . . . . . 1 . . . . . . . . . . . . . . Piercing Weapon . | . . . . . . . . . . . . . . . . . . . . Special Melee Weapon 1 | . . . . . . 1 . . . . . . . . . . . . . Unidentified Prototypes 58 | . 1 . . . 1 7 . . 11 2 1 8 7 7 6 3 1 3 . Corrupted Parts 3 | . . . . . . . . . . . . . 2 . . 1 . . . System Corruption 4 | . . . . . . . . . . . . . 2 . . 2 . . . Parts Lost 33 | . 2 . 1 1 . 3 . . . 1 . . . . . 2 . 1 22 Power 5 | . . . . . . . . . . . . . . . . 1 . 1 3 Propulsion 17 | . . . . 1 . 2 . . . . . . . . . 1 . . 13 Utility 6 | . 1 . . . . 1 . . . 1 . . . . . . . . 3 Weapon 5 | . 1 . 1 . . . . . . . . . . . . . . . 3 Highest Loss Streak 12 | . 1 . 1 1 . 1 . . . 1 . . . . . 1 . 1 12 To Critical Strikes . | . . . . . . . . . . . . . . . . . . . . Average Backups 14 | . 6 9 12 16 15 8 18 18 18 17 17 19 19 19 17 18 19 9 9 Power . | . 1 1 1 1 . . 1 1 1 2 1 . . . . 1 . . . Propulsion 3 | . . . 1 4 3 2 6 6 5 4 4 3 4 3 2 2 4 2 5 Utility 5 | . 1 2 3 2 3 2 7 8 7 6 8 9 8 8 8 8 7 2 1 Weapon 3 | . 3 6 6 8 5 1 2 1 1 1 1 1 2 3 3 3 3 2 1 Tool/Special . | . . . . . . . . . . . . . . . . . . . . Unused Backups 57 | . . . 5 . 11 12 2 . 5 2 . 4 3 3 . 4 3 . 3 Power 4 | . . . . . . 2 . . . . . . 1 . . 1 . . . Propulsion 19 | . . . . . 4 2 . . 4 1 . . . 2 . 3 1 . 2 Utility 11 | . . . 1 . 2 2 . . 1 . . 2 1 1 . . 1 . . Weapon 20 | . . . 4 . 5 5 2 . . 1 . 2 . . . . 1 . . Tool/Special 3 | . . . . . . 1 . . . . . . 1 . . . . . 1 Average Slot Usage (%) 74 | . 99 100 100 99 95 54 76 76 75 76 77 71 68 73 65 59 58 67 43 Engine 5 | . 14 14 14 14 14 1 5 5 3 . . . . . . . . . . Reactor 3 | . . . . . . . . . 1 5 10 7 7 9 9 10 12 10 7 Treads 10 | . 28 28 21 15 28 . . . . . . . . 2 6 17 19 . 11 Leg 12 | . . . . . . 10 35 35 34 35 35 31 30 33 21 2 . . . Wheel 1 | . . . 6 12 . 2 . . . . . . . . . . . . . Hover 1 | . . . . . . . . . . . . . . . . . . 28 6 Device 7 | . 15 14 12 13 14 9 4 4 4 4 5 4 4 3 3 4 3 1 4 Storage 6 | . 10 14 14 14 14 2 5 5 5 5 5 5 5 4 4 4 4 2 2 Processor 5 | . . . . . . 7 11 11 11 11 10 10 10 9 9 8 8 7 . Energy Gun 2 | . 26 25 8 . . . . . . . . . . . . . . . . Energy Cannon 2 | . . . 17 11 . . . . . . . . . . . . . . 1 Ballistic Cannon 3 | . . . . 14 19 . . . . . . . . . . . . . . Slashing Weapon 3 | . . . . . 4 5 5 5 4 5 5 5 4 4 4 4 4 3 3 Special Melee Weapon 2 | . . . . . . 4 5 5 5 5 5 5 5 4 4 4 4 3 1 Peak Build Rating 253 | 9 15 16 20 24 25 147 132 135 172 173 190 191 201 222 234 253 251 240 252 Average Rating 122 | 5 12 15 15 22 23 131 131 133 144 168 188 182 189 213 224 246 240 205 155 On Entrance 126 | . 9 13 16 20 18 23 132 132 135 172 170 189 184 197 222 234 231 235 202 Avg Prop Armor Cover (%) 10 | . . . 12 11 . 12 . . . . . 4 . 7 7 10 6 3 8 Naked Turns . | . . . . . . . . . . . . . . . . . . . . Heaviest Build 176 | 11 24 26 68 66 60 112 112 113 118 131 148 149 164 164 164 176 169 153 151 Greatest Support 460 | 40 40 40 40 40 40 126 126 131 173 173 200 205 182 233 360 435 435 415 460 Greatest Overweight (x) 26 | 1 . . 3 3 1 8 . . . . . 1 1 . 1 . . 1 26 Average Overweight (x) . | . . . 1 2 1 1 . . . . . . . . . . . . . Largest Inventory Capacity 20 | 5 10 10 20 20 20 20 20 20 20 20 20 20 20 20 20 20 20 20 15 Average Capacity 16 | 5 8 10 14 20 20 10 20 20 20 20 20 20 20 20 20 20 20 12 11 Most Carried 20 | 1 10 10 20 20 20 20 20 20 20 20 20 20 20 20 20 20 20 19 15 Average Carried 15 | . 6 9 13 19 19 9 19 19 19 19 19 19 19 19 19 19 19 12 10 Final Capacity 20 | 5 10 10 20 20 20 20 20 20 20 20 20 20 20 20 20 20 20 15 5 Final Carried 20 | 1 9 10 20 20 19 20 20 20 19 20 20 20 20 20 19 20 19 15 5 Class Distribution -------------------- 44% | Mutant 18% | Scavenger-Mutant 14% | Scavenger-Assassin 10% | Alien-Mutant 7% | Assassin Dominant Class ---------------- Mutant | -10/Materials Mutant | -10/Mines Mutant | -10/Subcaves Mutant | -7/Recycling Mutant | -7/Scraptown Assassin | -5/Factory Scavenger-Assassin | -5/Upper Caves Scavenger-Assassin | -5/Upper Caves Scavenger-Assassin | -5/Warlord Scavenger-Mutant | -4/Proximity Caves Scavenger-Mutant | -4/Factory Commander-Mutant | -4/Armory Mutant | -4/Lab Mutant | -3/Research Mutant | -3/Testing Scavenger-Mutant | -2/Research Alien-Mutant | -2/Quarantine Alien-Scout | -1/Access Alien-Mutant | -1/Command Resources | -11 -10 -10 -10 -7 -7 -5 -5 -5 -5 -4 -4 -4 -4 -3 -3 -2 -2 -1 -1 ----------- Run | Yrd Mat Min Sub Rec Scr Fac Upp Upp War Pro Fac Arm Lab Res Tes Res Qua Acc Com Matter Collected 27946 | 333 117 105 561 146 80 4839 925 292 2402 1403 636 2405 237 1783 1141 3468 2579 1626 2868 Remotely . | . . . . . . . . . . . . . . . . . . . . Salvage Created 10670 | 299 918 130 763 121 . 2482 28 122 179 370 117 294 90 218 482 816 1012 710 1519 Parts 448 | 28 65 9 57 7 . 80 2 1 4 6 7 16 10 5 18 18 47 26 42 Haulers Intercepted 3 | . . . . . . 1 . . . 1 . . . . 1 . . . . Recyclers Shooed 12 | . . . . . . 5 . . . . 1 . . 1 1 . . 2 2 Parts Field Recycled . | . . . . . . . . . . . . . . . . . . . . Retrieved Matter . | . . . . . . . . . . . . . . . . . . . . Parts Self-Destructed 100 | . . . 18 . . . 11 19 . 52 . . . . . . . . . Prevented . | . . . . . . . . . . . . . . . . . . . . Parts Restored . | . . . . . . . . . . . . . . . . . . . . Kills | -11 -10 -10 -10 -7 -7 -5 -5 -5 -5 -4 -4 -4 -4 -3 -3 -2 -2 -1 -1 ------- Run | Yrd Mat Min Sub Rec Scr Fac Upp Upp War Pro Fac Arm Lab Res Tes Res Qua Acc Com Combat Hostiles Destroyed 126 | . 23 17 21 2 . 17 . 1 3 . 3 7 1 3 2 7 5 . 14 Melee 46 | . . . . . . 17 . 1 3 . 2 6 1 3 2 4 4 . 3 Guns 24 | . 19 2 3 . . . . . . . . . . . . . . . . Cannons 20 | . . . 14 2 . . . . . . . . . . . 1 1 . 2 AOE 27 | . 3 15 4 . . . . . . . . . . . . . . . 5 Classes Destroyed 24 | 3 4 1 4 . . 4 1 . . 2 . 1 . . 1 1 1 . 1 Worker 9 | 1 1 1 . . . 3 . . . . . . . . . 1 . 1 1 Builder 9 | . 1 1 . . . 4 . . . . . . . . . . 1 2 . Tunneler 10 | 9 . 1 . . . . . . . . . . . . . . . . . Hauler 3 | . . . . . . 1 . . . 1 . . . . 1 . . . . Recycler 26 | 1 . . . . . 10 . . . . . . . . . 1 4 4 6 Minesweeper 1 | . . . . . . . 1 . . . . . . . . . . . . Mechanic 2 | . . . . . . 1 . . . . . . . . . . . . 1 Turret 2 | . . . 2 . . . . . . . . . . . . . . . . Watcher 8 | . 3 . . . . 1 . . . . . . . . 1 1 . 1 1 Swarmer 22 | . 9 . 7 . . 1 . . . . 2 3 . . . . . . . Saboteur 1 | . . . . . . . . . . . . . . . . . 1 . . Grunt 36 | . 14 2 . . . 7 . 1 3 . 1 1 . 1 1 1 . . 4 Brawler 1 | . . . . . . . . . . . . . . . . 1 . . . Protector 1 | . . . . . . . . . . . . . . . . . . . 1 Researcher 6 | . . . . . . . . . . . . . . . 3 . 3 . . Sentry 3 | . . . 1 2 . . . . . . . . . . . . . . . Demolisher 2 | . . . . . . . . . . . . 2 . . . . . . . Hunter 7 | . . . . . . 3 . . . . . . . . . 2 . . 2 Programmer 14 | . . . . . . 6 . . . . . 1 . 1 . 1 2 . 3 M Guard 2 | . . . . . . . . . . . . . . . . . . . 2 Tracker 1 | . . . . . . . . . . . . . . . . . 1 . . Combat Programmer 7 | . . . . . . . . . . . . . . 1 1 2 1 . 2 Executioner 1 | . . . . . . . . . . 1 . . . . . . . . . Artisan 1 | . . . 1 . . . . . . . . . . . . . . . . Subdweller 13 | . . . 13 . . . . . . . . . . . . . . . . Assembled 15 | . . 15 . . . . . . . . . . . . . . . . . Mutant 1 | . . . . . . . . . . 1 . . . . . . . . . Best Kill Streak 18 | 5 8 18 6 1 . 5 1 1 1 1 2 3 1 1 1 2 5 4 6 Combat Bots Only 15 | . 6 15 4 1 . 4 . 1 1 . 2 3 1 1 1 2 2 . 5 Max Kills in Single Turn 6 | 1 2 4 2 1 . 1 1 1 1 1 1 1 1 1 1 1 1 1 6 Gunslinging 1 | . . . 1 . . . . . . . . . . . . . . . . Exploded 5 | . 1 4 2 . . . . . . . . . . . . . . . 5 Melee 1 | . . . . . . 1 . 1 1 . 1 1 1 1 1 1 1 . 1 Uniques/NPCs Destroyed 3 | . . . . . . . . . . . . . 1 . . . . . 2 A5 (-4/Lab) MAIN.C Shell (-1/Command) MAIN.C (-1/Command) Combat | -11 -10 -10 -10 -7 -7 -5 -5 -5 -5 -4 -4 -4 -4 -3 -3 -2 -2 -1 -1 -------- Run | Yrd Mat Min Sub Rec Scr Fac Upp Upp War Pro Fac Arm Lab Res Tes Res Qua Acc Com Hostile Shots Fired 1544 | . 56 8 36 72 . 189 4 3 105 27 37 122 17 82 65 292 68 51 310 Missed 462 | . 15 2 11 13 . 55 2 . 51 10 12 37 5 30 19 77 17 21 85 Intercepted 12 | . . . . . . . . . 5 5 . 2 . . . . . . . Deflected 1 | . . . . . . . . . . . . 1 . . . . . . . Hits 1082 | . 41 6 25 59 . 134 2 3 54 17 25 85 12 52 46 215 51 30 225 Melee 11 | . . . . . . 2 . . 1 2 . . . 1 . 5 . . . Projectile 1071 | . 41 6 25 59 . 132 2 3 53 15 25 85 12 51 46 210 51 30 225 AOE 25 | . . . . . . 6 . . 2 1 . 10 . . . 3 1 . 2 Critical Strikes 75 | . 1 . . . . 9 . . 6 1 . 4 . 5 5 24 2 1 17 Part Disruptions 16 | . . . . . . 1 . . . . . 3 1 1 . 1 1 . 8 Damage Taken 21045 | . 434 105 355 439 . 3155 20 61 1156 399 281 1583 160 699 714 3278 689 694 6823 Core 2633 | . 59 . 62 67 . 401 10 20 97 32 38 102 27 . 43 86 31 90 1468 Absorbed by Shields 8402 | . . . . . . 88 18 47 223 69 290 808 162 658 669 3006 568 . 1796 Reduced by Siege Mode 197 | . . . . . . . . . . . . . . . . . . . 197 Regen/Repaired (Parts) 3070 | . 39 . . . . 782 . 20 315 115 67 411 54 160 217 313 135 153 289 Core Remaining (%) 62 | 100 . . . . 24 . . . . 44 . . 85 . 96 . 85 . 2 Volleys Fired 204 | 21 44 9 46 11 . . . . 1 . . . 1 . . 20 12 5 34 Largest 2 | 2 2 2 2 2 . . . . 1 . . . 1 . . 1 1 1 1 Hottest 160 | 60 90 90 160 160 . . . . 100 . . . 100 . . 100 100 100 100 Shots Fired 308 | 42 89 18 68 20 . . . . 1 . . . 1 . . 18 12 5 34 Gun 145 | 42 89 6 8 . . . . . . . . . . . . . . . . Cannon 123 | . . . 43 20 . . . . 1 . . . 1 . . 12 8 5 33 Launcher 25 | . . 12 11 . . . . . . . . . . . . 1 . . 1 Special 15 | . . . 6 . . . . . . . . . . . . 5 4 . . Kinetic 26 | 21 . . . 5 . . . . . . . . . . . . . . . Thermal 106 | . . . 49 15 . . . . . . . . . . . 12 . . 30 Explosive 23 | . . 12 11 . . . . . . . . . . . . . . . . Electromagnetic 125 | 21 89 6 8 . . . . . . . . . . . . 1 . . . Entropic 19 | . . . . . . . . . 1 . . . 1 . . . 8 5 4 Robot Hit Streak 28 | 5 15 6 14 7 . . . . . . . . . . . 5 7 . 28 Robot Miss Streak 5 | 2 5 1 3 2 . . . . . . . . . . . 4 1 . . Penetration Max 1 | . . . . . . . . . . . . . . . . . 1 . . Secondary Targets 6 | . 4 1 1 . . . . . . . . . . . . . . . . Max Gunslinging Chain 1 | . 1 1 1 . . . . . . . . . . . . . . . . Shots Hit Robots 507 | 27 65 5 29 13 . 74 1 5 10 36 11 24 8 16 27 41 25 14 76 Core Hits 286 | 12 41 34 29 4 . 37 . 2 3 9 2 10 5 8 13 24 14 6 33 Critical Kills 5 | . . . . . . . . . . . . . . . . 2 . . 3 Critical Parts Destroyed . | . . . . . . . . . . . . . . . . . . . . Critical Strikes 18 | . . . . . . . . . . . 2 2 . . . 2 3 . 9 Meltdown 5 | . . . . . . . . . . . . . . . . 2 . . 3 Sunder 5 | . . . . . . . . . . . . . . . . . 3 . 2 Melee Attacks 496 | . . . . . . 102 5 7 13 41 18 46 14 23 38 57 23 30 79 Impact . | . . . . . . . . . . . . . . . . . . . . Slashing 496 | . . . . . . 102 5 7 13 41 18 46 14 23 38 57 23 30 79 Piercing . | . . . . . . . . . . . . . . . . . . . . Sneak Attacks 100 | . . . . . . 29 1 . . 28 1 1 . 3 5 2 12 9 9 Combat Hostiles 3 | . . . . . . 2 . . . . . 1 . . . . . . . Follow-up Attacks 7 | . . . . . . . . . . 1 . . . 1 . 4 . . 1 Martial Strikes 1 | . . . . . . . . . . . . 1 . . . . . . . Damage Inflicted 29153 | 394 1397 1372 1134 362 . 4155 80 261 364 1644 450 954 438 712 1334 2277 1874 1020 8931 Guns 1599 | 351 1105 94 49 . . . . . . . . . . . . . . . . Cannons 3445 | . . . 684 362 . . . . . . . . . . . 479 696 . 1224 Explosions 7679 | 43 257 1278 401 . . . . . . . . . . . . 280 . . 5420 Melee 16390 | . . . . . . 4150 80 261 364 1644 450 954 438 712 1334 1518 1178 1020 2287 Ramming 40 | . 35 . . . . 5 . . . . . . . . . . . . . Kinetic 225 | 173 . . . 52 . . . . . . . . . . . . . . . Thermal 8393 | 43 257 . 714 310 . . . . . . . . . . . 662 . . 6407 Explosive 1649 | . . 1278 371 . . . . . . . . . . . . . . . . Electromagnetic 1523 | 178 1105 94 49 . . . . . . . . . . . . 97 . . . Impact . | . . . . . . . . . . . . . . . . . . . . Slashing 16390 | . . . . . . 4150 80 261 364 1644 450 954 438 712 1334 1518 1178 1020 2287 Piercing . | . . . . . . . . . . . . . . . . . . . . Entropic 933 | . . . . . . . . . . . . . . . . . 696 . 237 Highest Corruption 47 | . 3 3 3 3 . 4 . . 1 1 . 1 4 4 15 47 47 3 23 Average Corruption 5 | . 3 3 3 3 . 2 . . 1 1 . 1 2 3 7 16 11 1 12 Corruption Purged 4 | . . . . . . 4 . . . . . . . . . . . . . Corruption Blocked . | . . . . . . . . . . . . . . . . . . . . Effects 291 | . 24 8 40 15 . 37 . . . 10 . 6 4 6 21 51 5 . 64 Message Errors 69 | . 4 3 11 7 . 7 . . . 3 . 1 . 2 3 9 2 . 17 Matter Fused 69 | . 4 2 9 3 . 9 . . . 2 . 2 2 1 3 14 2 . 16 Heat Flow Errors 44 | . 5 . 3 3 . 8 . . . 1 . 1 1 . 4 4 . . 14 Energy Discharges 40 | . 2 2 9 . . 5 . . . 1 . . 1 1 3 9 . . 7 Parts Rejected 5 | . . . . . . . . . . . . . . . 2 2 . . 1 Parts Fused 3 | . . . 2 . . 1 . . . . . . . . . . . . . Data Loss (minor) 34 | . 3 . 4 1 . 3 . . . 3 . 2 . 2 4 5 . . 7 Data Loss (major) 11 | . 2 1 . . . 3 . . . . . . . . 1 2 . . 2 Misfires 4 | . 2 . 2 . . . . . . . . . . . . . . . . Alerts 5 | . 1 . . 1 . 1 . . . . . . . . 1 . 1 . . Misdirections 4 | . . . . . . . . . . . . . . . . 4 . . . Weapon Failures 3 | . 1 . . . . . . . . . . . . . . 2 . . . Overload Shots . | . . . . . . . . . . . . . . . . . . . . Overflow Damage 2916 | 3 12 97 . . . 584 40 . . 58 141 21 . 32 55 16 237 262 1358 Projectiles 141 | . . . . . . . . . . . . . . . . . 118 . 23 Explosions 1142 | 3 12 97 . . . . . . . . . . . . . . . . 1030 Melee 1633 | . . . . . . 584 40 . . 58 141 21 . 32 55 16 119 262 305 Knockbacks . | . . . . . . . . . . . . . . . . . . . . Impact . | . . . . . . . . . . . . . . . . . . . . Kinetic . | . . . . . . . . . . . . . . . . . . . . Secondary . | . . . . . . . . . . . . . . . . . . . . Self-Inflicted Damage 956 | . 16 20 36 . . 2 . . . . . . . . . 22 . . 860 Shots 6 | . 1 1 1 . . . . . . . . . . . . 2 . . 1 Rammed 10 | . 9 . . . . 1 . . . . . . . . . . . . . Targets Rammed 10 | . 9 . . . . 1 . . . . . . . . . . . . . Kicked . | . . . . . . . . . . . . . . . . . . . . Crushed . | . . . . . . . . . . . . . . . . . . . . Highest Temperature 501 | . 280 33 235 501 . 254 . . 34 148 . 183 151 . 183 238 . 202 455 Average Temperature 72 | . 58 17 51 198 . 95 . . 16 84 . 88 61 . 93 69 . 50 104 Received Heat Transfer 2067 | . 144 33 57 126 . 327 8 12 387 42 50 211 . 85 90 141 62 27 265 Effects 5 | . . . . 4 . . . . . . . . . . . . . . 1 Shutdowns 2 | . . . . 2 . . . . . . . . . . . . . . . Energy Bleed 1 | . . . . . . . . . . . . . . . . . . . 1 Interference 1 | . . . . 1 . . . . . . . . . . . . . . . Damage (minor) 1 | . . . . 1 . . . . . . . . . . . . . . . Siege Activations 1 | . . . . . . . . . . . . . . . . . . . 1 Total Turns 28 | . . . . . . . . . . . . . . . . . . . 28 Longest Duration 28 | . . . . . . . . . . . . . . . . . . . 28 Martial Activations 3 | . . . . . . . . . . . . 3 . . . . . . . Total Turns 22 | . . . . . . . . . . . . 22 . . . . . . . Longest Duration 11 | . . . . . . . . . . . . 11 . . . . . . . Shielding Activations 1 | . . . . . . . . . . . . . . . . 1 . . . Total Turns 69 | . . . . . . . . . . . . . . . . 69 . . . Longest Duration 69 | . . . . . . . . . . . . . . . . 69 . . . Robots Disrupted 5 | . . . . . . . . . . 1 . . . 1 1 . 1 . 1 Combat Hostiles 3 | . . . . . . . . . . 1 . . . 1 . . . . 1 Robots Corrupted 1 | . 1 . . . . . . . . . . . . . . . . . . Combat Hostiles 1 | . 1 . . . . . . . . . . . . . . . . . . Parts Fried 5 | 1 2 . . . . . . . . . . . . . 2 . . . . Impact Corruptions . | . . . . . . . . . . . . . . . . . . . . Robots Melted 5 | . . . . . . . . . . . . . . . . 2 . . 3 Combat Hostiles 5 | . . . . . . . . . . . . . . . . 2 . . 3 Parts Melted 13 | . . . 2 1 . . . . . . . . . . . 5 . . 5 Heat Transferred 2624 | 50 250 . 975 407 . . . . . . . . . . . 413 . . 529 Parts Sabotaged 2 | . . . . . . . . . . . . . . 2 . . . . . Parts Stolen . | . . . . . . . . . . . . . . . . . . . . Parts Stripped . | . . . . . . . . . . . . . . . . . . . . Power Chain Reactions 8 | 1 5 . 1 . . . . . . . . . . . . 1 . . . Alert | -11 -10 -10 -10 -7 -7 -5 -5 -5 -5 -4 -4 -4 -4 -3 -3 -2 -2 -1 -1 ------- Run | Yrd Mat Min Sub Rec Scr Fac Upp Upp War Pro Fac Arm Lab Res Tes Res Qua Acc Com Maximum Alert Level 5 | . 1 . . . . 4 . . . . 1 3 . 4 4 5 5 4 5 Low Security (%) 39 | 100 96 100 . 100 . 59 . . . . 40 41 . 49 . . . . . Level 1 5 | . 3 . . . . 6 . . . . 59 10 . 17 . . . . . Level 2 7 | . . . . . . 8 . . . . . 31 . 6 . . . . 15 Level 3 21 | . . . . . . 9 . . . . . 16 . 8 38 34 . 88 51 Level 4 14 | . . . . . . 15 . . . . . . . 18 61 17 87 11 . Level 5 9 | . . . . . . . . . . . . . . . . 42 8 . 33 High Security . | . . . . . . . . . . . . . . . . 5 3 . . Max Security . | . . . . . . . . . . . . . . . . . . . . Peak Influence 2351 | 15 214 154 . 66 . 1303 . . . . 287 873 . 1405 1498 2351 1910 1139 938 Initial 1299 | . . 51 . . . . . . . . 287 72 . . 789 819 1299 1139 645 Average 611 | 2 110 112 . 17 . 378 . . . . 209 370 . 425 1191 1481 1349 1025 751 Influence Increases 19192 | 55 719 183 405 285 . 2293 187 401 1641 939 219 1839 . 1693 1259 2462 1110 600 2902 Destroy 0b10 Robot/C 8300 | . 460 100 200 40 . 1240 80 200 960 460 120 880 . 740 580 1120 540 80 500 Destroy 0b10 Robot/NC 605 | 55 25 15 . . . 150 5 5 15 15 . 10 . 55 15 90 65 40 45 Destroy Leader 1288 | . 106 20 10 . . 254 20 20 . 40 20 122 . 162 64 284 84 12 70 Allied During Kill 4711 | . . 8 . . . 477 82 176 666 424 15 607 . 639 413 590 316 12 286 Successful Hack 202 | . 19 . . 59 . 41 . . . . 15 40 . . . 6 . 18 4 Select Force Hacks 240 | . 60 . . 180 . . . . . . . . . . . . . . . Disable Machine 525 | . 30 . . . . 15 . . . . 15 105 . 30 105 105 30 60 30 Destroy Structure 2421 | . 19 40 . 6 . 26 . . . . 4 30 . 52 82 192 60 48 1862 Partial Spotted 60 | . . . . . . . . . . . 15 . . 15 . . . 15 15 Lose Combat Pursuer 840 | . . . 195 . . 90 . . . . 15 45 . . . 75 15 315 90 Influence Decreases 16649 | 55 586 242 479 285 . 994 1031 533 647 1799 528 1257 730 288 1208 1607 1522 1490 1368 Entered New Map 6694 | . . 82 39 . . . 481 87 323 1317 170 76 730 . 616 637 1012 760 364 Time Decay 6225 | 55 436 140 430 284 . 524 550 386 144 352 238 432 . 228 342 550 350 350 434 Lost Part 301 | . 20 . 10 1 . 10 . . . 10 . . . . . 20 . 10 220 Lost Ally 3020 | . . 20 . . . 460 . 60 180 120 120 620 . 60 250 400 160 220 350 Purge Threat 409 | . 130 . . . . . . . . . . 129 . . . . . 150 . Squads Dispatched 103 | . 7 . . . . 20 . . . 1 5 9 . 7 8 17 13 12 4 Investigation 8 | . 3 . . . . 1 . . . . . 1 . 1 . . . 1 1 Extermination 23 | . . . . . . 6 . . . . 1 3 . 1 2 4 2 2 2 Reinforcement 32 | . 4 . . . . 10 . . . . 1 2 . 2 5 3 3 2 . Assault 21 | . . . . . . 3 . . . 1 . 3 . 2 . 4 4 3 1 Garrison 14 | . . . . . . . . . . . 3 . . . . 5 3 3 . Intercept 5 | . . . . . . . . . . . . . . 1 1 1 1 1 . Searches Triggered . | . . . . . . . . . . . . . . . . . . . . Construction Impeded 6 | . . . . . . 1 . . . . . . . 1 1 2 1 . . Haulers Reinforced 3 | . . . . . . 2 . . . . . . . . 1 . . . . Active Scanning Responses . | . . . . . . . . . . . . . . . . . . . . Cargo Convoy Interrupts 2 | . . . . . . 1 . . . . . . . 1 . . . . . Stealth | -11 -10 -10 -10 -7 -7 -5 -5 -5 -5 -4 -4 -4 -4 -3 -3 -2 -2 -1 -1 --------- Run | Yrd Mat Min Sub Rec Scr Fac Upp Upp War Pro Fac Arm Lab Res Tes Res Qua Acc Com Distress Signals 39 | . 3 . . . . 3 . . . . 1 1 . 4 2 4 2 . 19 Communications Jammed 2 | . . . . . . 2 . . . . . . . . . . . . . Distress Signals 2 | . . . . . . 2 . . . . . . . . . . . . . Times Spotted 685 | . 29 18 22 2 . 91 9 11 71 20 15 67 1 59 31 78 59 41 61 Peak Tracking Total 19 | . 6 13 4 1 . 14 6 5 15 10 7 13 1 10 6 10 11 19 10 Tactical Retreats 23 | . . . 3 . . 5 . . . . 1 2 . . . 4 1 4 3 Traps | -11 -10 -10 -10 -7 -7 -5 -5 -5 -5 -4 -4 -4 -4 -3 -3 -2 -2 -1 -1 ------- Run | Yrd Mat Min Sub Rec Scr Fac Upp Upp War Pro Fac Arm Lab Res Tes Res Qua Acc Com Traps Triggered 13 | . 1 . . . . 3 . . . . . . . 2 . 3 2 1 1 Indirectly . | . . . . . . . . . . . . . . . . . . . . Trap Hack Attempts . | . . . . . . . . . . . . . . . . . . . . Triggered . | . . . . . . . . . . . . . . . . . . . . Disarmed . | . . . . . . . . . . . . . . . . . . . . Reprogrammed . | . . . . . . . . . . . . . . . . . . . . Reused . | . . . . . . . . . . . . . . . . . . . . Traps Extracted . | . . . . . . . . . . . . . . . . . . . . Installed . | . . . . . . . . . . . . . . . . . . . . Triggered . | . . . . . . . . . . . . . . . . . . . . Most Traps Carried 1 | . . . . . 1 1 1 1 1 1 1 1 . . . . . . . Machines | -11 -10 -10 -10 -7 -7 -5 -5 -5 -5 -4 -4 -4 -4 -3 -3 -2 -2 -1 -1 ---------- Run | Yrd Mat Min Sub Rec Scr Fac Upp Upp War Pro Fac Arm Lab Res Tes Res Qua Acc Com Machines Disabled 45 | . 2 . 3 . . 1 . 1 2 . 1 7 2 2 8 8 2 4 2 Max in Single Turn 2 | . 1 . 2 . . 1 . 1 1 . 1 1 1 . 1 1 1 1 1 Machines Repaired . | . . . . . . . . . . . . . . . . . . . . Machines Dismantled . | . . . . . . . . . . . . . . . . . . . . Machines Sabotaged . | . . . . . . . . . . . . . . . . . . . . Overloaded Fab Kills . | . . . . . . . . . . . . . . . . . . . . Hacking | -11 -10 -10 -10 -7 -7 -5 -5 -5 -5 -4 -4 -4 -4 -3 -3 -2 -2 -1 -1 --------- Run | Yrd Mat Min Sub Rec Scr Fac Upp Upp War Pro Fac Arm Lab Res Tes Res Qua Acc Com Machines Accessed 62 | . 7 . 2 11 4 5 . . 4 . 4 5 . 2 1 3 3 8 3 Terminals 32 | . 4 . . 5 . 4 . . . . 1 5 . 1 . 2 1 6 3 Fabricators 3 | . . . . . . 1 . . . . 1 . . . . . . 1 . Repair Stations 1 | . 1 . . . . . . . . . . . . . . . . . . Recycling Units 8 | . 2 . . 6 . . . . . . . . . . . . . . . Scanalyzers 3 | . . . . . . . . . . . 1 . . . 1 . 1 . . Garrison Access 5 | . . . . . . . . . . . 1 . . 1 . 1 1 1 . Total Hacks 132 | . 21 . 7 34 8 10 . . 4 . 7 9 . 3 2 4 3 17 3 Successful 64 | . 10 . 7 15 8 4 . . 4 . 4 5 . . . 1 1 4 1 Failed 68 | . 11 . . 19 . 6 . . . . 3 4 . 3 2 3 2 13 2 Catastrophic 22 | . 1 . . 4 . 3 . . . . 2 3 . 2 . 3 1 2 1 Database Lockouts . | . . . . . . . . . . . . . . . . . . . . Manual 50 | . 9 . . 23 . 4 . . . . 3 3 . . . 2 . 5 1 Terminals 71 | . 13 . . 19 . 8 . . . . 2 9 . 1 . 3 1 12 3 Fabricators 6 | . . . . . . 2 . . . . 2 . . . . . . 2 . Repair Stations 2 | . 2 . . . . . . . . . . . . . . . . . . Recycling Units 21 | . 6 . . 15 . . . . . . . . . . . . . . . Scanalyzers 5 | . . . . . . . . . . . 2 . . . 2 . 1 . . Garrison Access 8 | . . . . . . . . . . . 1 . . 2 . 1 1 3 . Terminal Hacks 38 | . 5 . 7 1 8 2 . . 4 . . 5 . . . 1 1 3 1 Record 15 | . . . 6 . 6 . . . 3 . . . . . . . . . . Prototype ID Bank 3 | . 1 . . . . . . . . . . 2 . . . . . . . Open Door 7 | . . . . . 1 . . . 1 . . 2 . . . . 1 1 1 Branch Access Points 5 | . 1 . . 1 . 1 . . . . . . . . . 1 . 1 . Unreport Threat 3 | . 1 . . . . . . . . . . 1 . . . . . 1 . Hauler Manifests 2 | . 1 . . . . 1 . . . . . . . . . . . . . Registered Components 1 | . 1 . . . . . . . . . . . . . . . . . . Proto ID Catalog 2 | . . . 1 . 1 . . . . . . . . . . . . . . Fabricator Hacks 2 | . . . . . . 1 . . . . 1 . . . . . . . . Network Status 2 | . . . . . . 1 . . . . 1 . . . . . . . . Repair Station Hacks 2 | . 2 . . . . . . . . . . . . . . . . . . Scan Component 1 | . 1 . . . . . . . . . . . . . . . . . . Repair 1 | . 1 . . . . . . . . . . . . . . . . . . Recycling Unit Hacks 3 | . . . . 3 . . . . . . . . . . . . . . . Retrieve Components 3 | . . . . 3 . . . . . . . . . . . . . . . Scanalyzer 2 | . . . . . . . . . . . 2 . . . . . . . . Insert Component 1 | . . . . . . . . . . . 1 . . . . . . . . Retrieve Study 1 | . . . . . . . . . . . 1 . . . . . . . . Garrison Access Hacks . | . . . . . . . . . . . . . . . . . . . . Unauthorized Hacks 17 | . 3 . . 11 . 1 . . . . 1 . . . . . . 1 . Terminals 9 | . 1 . . 5 . 1 . . . . 1 . . . . . . 1 . Assimilate 1 | . . . . . . 1 . . . . . . . . . . . . . Botnet 2 | . . . . . . . . . . . 1 . . . . . . 1 . Skim 6 | . 1 . . 5 . . . . . . . . . . . . . . . Fabricators . | . . . . . . . . . . . . . . . . . . . . Repair Stations . | . . . . . . . . . . . . . . . . . . . . Recycling Units 8 | . 2 . . 6 . . . . . . . . . . . . . . . Tunnel 8 | . 2 . . 6 . . . . . . . . . . . . . . . Scanalyzers . | . . . . . . . . . . . . . . . . . . . . Garrison Access . | . . . . . . . . . . . . . . . . . . . . Data Cores Recovered 1 | . . . . . . 1 . . . . . . . . . . . . . Used . | . . . . . . . . . . . . . . . . . . . . Hacking Detections 38 | . 4 . . 6 . 4 . . . . 3 4 . 2 1 2 2 8 2 Full Trace Events 1 | . . . . 1 . . . . . . . . . . . . . . . Feedback Events . | . . . . . . . . . . . . . . . . . . . . Feedback Blocked . | . . . . . . . . . . . . . . . . . . . . Robot Schematics Acquired 7 | . . . . . . . . . . . . . . . 4 . 3 . . Robots Built . | . . . . . . . . . . . . . . . . . . . . Authchips . | . . . . . . . . . . . . . . . . . . . . Time . | . . . . . . . . . . . . . . . . . . . . Total Robot Build Rating . | . . . . . . . . . . . . . . . . . . . . Part Schematics Acquired 11 | . . . . . . . . . . . . . . . 7 . 4 . . Parts Built . | . . . . . . . . . . . . . . . . . . . . Authchips . | . . . . . . . . . . . . . . . . . . . . Time . | . . . . . . . . . . . . . . . . . . . . Total Part Build Rating . | . . . . . . . . . . . . . . . . . . . . Part Studies Acquired 1 | . . . . . . . . . . . 1 . . . . . . . . Parts Repaired 1 | . 1 . . . . . . . . . . . . . . . . . . Time 51 | . 51 . . . . . . . . . . . . . . . . . . Parts Recycled . | . . . . . . . . . . . . . . . . . . . . Recycled Matter . | . . . . . . . . . . . . . . . . . . . . Retrieved Matter . | . . . . . . . . . . . . . . . . . . . . Retrieved Components 2 | . . . . 2 . . . . . . . . . . . . . . . Parts Scanalyzed . | . . . . . . . . . . . . . . . . . . . . Part Schematics Acquired . | . . . . . . . . . . . . . . . . . . . . Parts Damaged . | . . . . . . . . . . . . . . . . . . . . Bothacking | -11 -10 -10 -10 -7 -7 -5 -5 -5 -5 -4 -4 -4 -4 -3 -3 -2 -2 -1 -1 ------------ Run | Yrd Mat Min Sub Rec Scr Fac Upp Upp War Pro Fac Arm Lab Res Tes Res Qua Acc Com Used RIF Installer . | . . . . . . . . . . . . . . . . . . . . Robots Hacked 4 | . . . . . . . . . . . . . . . . . 4 . . Non-combat . | . . . . . . . . . . . . . . . . . . . . Combat 4 | . . . . . . . . . . . . . . . . . 4 . . Robot Hacks Applied 4 | . . . . . . . . . . . . . . . . . 4 . . parse_system 4 | . . . . . . . . . . . . . . . . . 4 . . Relay Couplers Released . | . . . . . . . . . . . . . . . . . . . . Fabnet Peak Effective % . | . . . . . . . . . . . . . . . . . . . . Robots Rewired 9 | . . . . . . . . . 5 2 . 2 . . . . . . . Allies Hacked 65 | . . . . . . 13 3 . 2 . . 9 . 3 9 15 7 . 4 Hacks Repelled 20 | . . . . . . . . . . . . . . 9 7 4 . . . Allies | -11 -10 -10 -10 -7 -7 -5 -5 -5 -5 -4 -4 -4 -4 -3 -3 -2 -2 -1 -1 -------- Run | Yrd Mat Min Sub Rec Scr Fac Upp Upp War Pro Fac Arm Lab Res Tes Res Qua Acc Com Total Allies 28 | . . 2 . . . . . . 5 2 . 12 . . . . . . 7 Largest Group 12 | . . 2 . . . . . . 4 2 2 12 . . . . . . 7 Highest-Rated Group 593 | . . 42 . . . . . . 180 90 79 593 . . . . . . 103 Highest-Rated Ally 64 | . . 31 . . . . . . 64 49 49 58 . . . . . . 15 Initial UFD Resources 50 | . . . . . . 37 37 37 37 41 41 41 41 45 45 48 48 50 50 Total Orders 26 | . . . . . . 3 . . 5 . . . 2 . . . 2 . 14 STAY 15 | . . . . . . 1 . . 3 . . . 1 . . . 1 . 9 FOLLOW 10 | . . . . . . 1 . . 2 . . . 1 . . . 1 . 5 DROP 1 | . . . . . . 1 . . . . . . . . . . . . . Ally Attacks 2079 | . . 6 . . . 297 50 84 293 117 35 227 5 186 137 276 130 46 190 Total Damage 81878 | . . 104 . . . 9649 1222 1211 8159 3997 1088 7662 36 8717 7666 13940 5898 1933 10596 Kills 382 | . . 3 . . . 57 9 9 48 24 3 40 . 46 29 68 27 4 15 Allies Corrupted 19 | . . . . . . 3 . . . . . 2 . 1 3 6 . 2 2 Allies Melted 8 | . . . . . . 3 . . 2 2 . . . . . 1 . . . Borg Created 121 | . . . . . . 35 1 1 6 2 6 15 . 6 7 16 5 11 10 Largest Collective 6 | . . . . . . 6 6 5 6 5 3 5 . 5 4 5 4 3 6 Intel | -11 -10 -10 -10 -7 -7 -5 -5 -5 -5 -4 -4 -4 -4 -3 -3 -2 -2 -1 -1 ------- Run | Yrd Mat Min Sub Rec Scr Fac Upp Upp War Pro Fac Arm Lab Res Tes Res Qua Acc Com Active Infowar (turns) 16156 | 32 257 . . . . 3322 1584 916 1318 1241 503 1541 420 615 760 1676 823 782 366 Optics 14462 | . . . . . . 1917 1584 916 1318 1241 503 1541 420 615 760 1676 823 782 366 Sensors 7604 | . . . . . . 3119 1579 893 888 693 . . . . . . . 381 51 IFF 787 | . . . . . . 787 . . . . . . . . . . . . . Terrain 279 | 22 257 . . . . . . . . . . . . . . . . . . Seismic 174 | 32 142 . . . . . . . . . . . . . . . . . . Jamming 991 | . . . . . . 821 . . 36 . . 129 . 5 . . . . . ECM 3 | . . . . . . . . . . . . 1 . . . . 2 . . Robot Analysis Total . | . . . . . . . . . . . . . . . . . . . . Derelict Logs Recovered 13 | . . 1 2 . 5 . 1 2 . 2 . . . . . . . . . Drone Launches . | . . . . . . . . . . . . . . . . . . . . Drone Recoveries . | . . . . . . . . . . . . . . . . . . . . Exploration | -11 -10 -10 -10 -7 -7 -5 -5 -5 -5 -4 -4 -4 -4 -3 -3 -2 -2 -1 -1 ------------- Run | Yrd Mat Min Sub Rec Scr Fac Upp Upp War Pro Fac Arm Lab Res Tes Res Qua Acc Com Turns Passed 25954 | 304 1399 296 2221 809 3368 3331 1584 916 1318 1241 503 1541 435 615 760 1676 823 782 2032 Spaces Moved 16024 | 149 655 137 1268 535 1394 1933 1223 707 867 917 416 1155 297 436 461 867 406 1313 888 Core 11 | 9 . . . . . . . . . . . . . . . . . . 2 Treads 4801 | 140 655 137 618 29 1394 . . . . . . . . . 86 867 406 15 454 Legs 7096 | . . . . . . 703 1223 707 867 917 416 1155 297 436 375 . . . . Wheels 1604 | . . . 650 506 . 448 . . . . . . . . . . . . . Hover 1730 | . . . . . . . . . . . . . . . . . . 1298 432 Flight 782 | . . . . . . 782 . . . . . . . . . . . . . Fastest Speed 34 | 50 160 160 130 130 240 120 120 120 106 106 101 100 111 108 111 157 157 34 34 Average Speed 130 | 154 160 160 149 139 240 128 120 120 116 106 102 109 111 109 120 158 159 41 107 Slowest Speed 1350 | 160 160 160 160 240 240 672 120 120 120 106 105 216 182 111 240 160 161 161 1350 Overloaded Moves 6 | . . . . . . . . . . . . 6 . . . . . . . Propulsion Burnouts . | . . . . . . . . . . . . . . . . . . . . Robots Hopped 6 | . . . . . . . . . . 5 . . . 1 . . . . . Potential Cave-ins 2 | . . . . . . . . . . . . . . . . . . . 2 Cave-ins Triggered . | . . . . . . . . . . . . . . . . . . . . Teleports 1 | . . . . . . . . . . . . . . . . . 1 . . Exploration Rate (%) 59 | 5 96 26 79 94 88 50 99 93 91 89 16 60 93 15 66 24 46 31 31 Regions Visited 19 Branch Regions 13 Pre-discovered Areas 11 | . 2 . 2 6 1 . . . . . . . . . . . . . . Known Exits Taken 8 | . 1 . . . . 1 1 1 . 1 . . . 1 . 1 . 1 . Unknown Exits Taken 11 | 1 . 1 1 1 1 . . . 1 . 1 1 1 . 1 . 1 . . Scrap Searched 23 | . . 1 10 . 5 . 3 3 . 1 . . . . . . . . . Spaces Dug 98 | . . 51 . 3 . 11 4 . . 2 1 7 . 3 2 4 2 3 5 Terrain Destroyed 916 | . 22 103 42 6 . 11 4 . 1 2 1 7 . 3 2 10 9 10 683 Melee 44 | . . . . . . 11 4 . . 2 1 7 . 3 2 4 2 3 5 Projectile 28 | . . . 5 6 . . . . 1 . . . . . . . 7 7 2 AOE 844 | . 22 103 37 . . . . . . . . . . . . 6 . . 676 Terrain Rammed . | . . . . . . . . . . . . . . . . . . . . Walls Destroyed . | . . . . . . . . . . . . . . . . . . . . Machines Disabled . | . . . . . . . . . . . . . . . . . . . . Actions | -11 -10 -10 -10 -7 -7 -5 -5 -5 -5 -4 -4 -4 -4 -3 -3 -2 -2 -1 -1 --------- Run | Yrd Mat Min Sub Rec Scr Fac Upp Upp War Pro Fac Arm Lab Res Tes Res Qua Acc Com Total 20140 | 177 912 194 1506 575 1424 2627 1336 765 1151 1122 467 1371 378 539 612 1080 548 1503 1853 Wait 2355 | . 179 42 130 8 . 437 84 43 138 122 17 71 25 26 66 57 61 74 775 Move 15992 | 148 654 136 1267 534 1393 1932 1222 706 866 906 415 1154 296 433 460 866 405 1312 887 Hop 6 | . . . . . . . . . . 5 . . . 1 . . . . . Pick Up 204 | 1 10 1 22 3 11 35 9 1 11 9 4 17 11 5 6 16 8 18 6 Fast Attach 115 | 7 4 . . 2 1 24 . 1 11 . . 5 6 14 8 8 4 7 13 Attach 45 | . 1 . 1 . . 4 . . 1 1 2 . . 1 4 5 2 7 16 Detach 42 | . 2 . . . 1 9 . . 4 . . 2 . 4 2 4 1 4 9 Swap 197 | . 5 5 27 11 3 14 4 3 25 13 3 23 11 6 7 8 7 13 9 Drop 243 | . 4 1 13 6 15 28 11 3 20 9 2 23 14 18 12 16 13 20 15 Fire 204 | 21 44 9 46 11 . . . . 1 . . . 1 . . 20 12 5 34 Melee 484 | . . . . . . 102 5 7 13 40 18 45 14 22 38 53 23 30 74 Ram 1 | . . . . . . 1 . . . . . . . . . . . . . Kick . | . . . . . . . . . . . . . . . . . . . . Crush 9 | . 9 . . . . . . . . . . . . . . . . . . Escape Stasis . | . . . . . . . . . . . . . . . . . . . . Rewire 99 | . . . . . . 5 . . 54 12 . 15 . 2 . 7 3 . 1 Trap . | . . . . . . . . . . . . . . . . . . . . Miscellaneous 144 | . . . . . . 36 1 1 7 5 6 16 . 7 9 20 9 13 14 Route ------- -11/Scrapyard -10/Materials (discovered 6 exits: [*Mat x3] / *Min x2 / *Sub) -10/Mines -10/Subcaves (discovered 3 exits: [*Mat x2] / *Rec) -7/Recycling (discovered 2 exits: *Fac / *Scr) -7/Scraptown (discovered 2 exits: *Fac x2) -5/Factory (discovered 6 exits: *Fac x4 / *Upp x2) -5/Upper Caves -5/Upper Caves (discovered 2 exits: *Fac / *War) -5/Warlord -4/Proximity Caves -4/Factory -4/Armory (discovered 2 exits: *Res / *Lab) -4/Lab -3/Research -3/Testing -2/Research (discovered 3 exits: *Acc / *Qua x2) -2/Quarantine -1/Access (discovered 2 exits: [*Sur] / *Com) -1/Command (discovered 2 exits: [*Sur x2]) To Fleet Rendezvous History --------- Turn | Location | Event 30 | -11/Scrapyard | Discovered new exit (range 15) 305 | -11/Scrapyard | Entered Materials 306 | -10/Materials | Build established: Mutant 499 | -10/Materials | Discovered new exit (range 12) 502 | -10/Materials | Discovered new exit (range 15) 874 | -10/Materials | Identified exit to Mines 1002 | -10/Materials | Discovered new exit (range 9) 1176 | -10/Materials | Repaired Imp. EM Shotgun 1213 | -10/Materials | Discovered new exit (range 4) 1560 | -10/Materials | Discovered new exit (range 6) 1704 | -10/Materials | Entered Mines 1823 | -10/Mines | Assembled infested the area 1828 | -10/Mines | Assisted by a Guerilla fighting off Assembled 1865 | -10/Mines | Destroyed 15 combat bots 1914 | -10/Mines | Learned Materials interactive machine intel 1950 | -10/Mines | Discovered new exit (range 5) 2000 | -10/Mines | Entered Subcaves 2001 | -10/Subcaves | Approached by a straggling Scientist 2145 | -10/Subcaves | Discovered new exit (range 16) 2403 | -10/Subcaves | Shifting Twisted Machinery released Sub. Beam Cannon 2407 | -10/Subcaves | Shifting Twisted Machinery released Sub. Shrapnel Launcher 2532 | -10/Subcaves | Discovered new exit (range 9) 2535 | -10/Subcaves | Learned location of Zion (-7) 2535 | -10/Subcaves | Met a Zionite searching for "candidates" 3266 | -10/Subcaves | Discovered new exit (range 13) 3308 | -10/Subcaves | Visited Clippyterm 3312 | -10/Subcaves | Learned 40 Factory zone layouts 3325 | -10/Subcaves | Learned Materials garrison access intel 3784 | -10/Subcaves | Disturbed a concealed Subdweller 4013 | -10/Subcaves | Visited 4L-MR0's lab 4027 | -10/Subcaves | Found Flightbrick 4183 | -10/Subcaves | Shifting Twisted Machinery released Sub. Optics 4221 | -10/Subcaves | Entered Recycling 4229 | -7/Recycling | Core integrity fell below 50% 4710 | -7/Recycling | Discovered new exit (range 15) 4970 | -7/Recycling | Scanned before Scraplab entrance 5006 | -7/Recycling | Entered Scraplab 5026 | -7/Recycling | Discovered new exit (range 3) 5030 | -7/Recycling | Entered Scraptown 5030 | -7/Scraptown | System corruption cleaned by C-Scrubber 5185 | -7/Scraptown | Heard Great Nut preacher, LISTEN AND RECITE! 5372 | -7/Scraptown | Scanned Subdweller tech in exchange for log data 5377 | -7/Scraptown | Learned location of Armory (-4) 5379 | -7/Scraptown | Learned Factory emergency access door positions 5381 | -7/Scraptown | Learned Research security intel 5386 | -7/Scraptown | Learned 8 Factory zone layouts 5545 | -7/Scraptown | Visited UFD Registry 5545 | -7/Scraptown | Registered with UFD as "Protonunit" 5573 | -7/Scraptown | Visited Awakened 5593 | -7/Scraptown | Visited Comm Corps 5761 | -7/Scraptown | Discovered new exit (range 11) 5809 | -7/Scraptown | Guru changed UFD alias to "Autosplitter" 6519 | -7/Scraptown | Visited Spacefarers 6536 | -7/Scraptown | Visited Assassins FH 6577 | -7/Scraptown | Visited Cyclists 6596 | -7/Scraptown | Entered Cyclist Reading Room 6690 | -7/Scraptown | Visited The Evicted 6759 | -7/Scraptown | Visited Abandonware Association 6776 | -7/Scraptown | Learned abandonware demo "OVRCLOCK.EXE" 6786 | -7/Scraptown | Learned abandonware demo "KABOOM.EXE" 6841 | -7/Scraptown | Visited Scrapoid Pod Storage 6858 | -7/Scraptown | Found Scrapoid Pod 6899 | -7/Scraptown | Visited Research Penetration Think Tank 7197 | -7/Scraptown | Visited Chapter 10 7252 | -7/Scraptown | Visited DA-N13 Charitable Foundation 7274 | -7/Scraptown | Found DCF Scrap (30 items) 7354 | -7/Scraptown | Visited Sword Containment 7385 | -7/Scraptown | Found Prototype Slashing Weapon 7385 | -7/Scraptown | Identified Companion Sword 7427 | -7/Scraptown | Visited Modified Component R&D 7550 | -7/Scraptown | Visited Science Guys 7745 | -7/Scraptown | Visited Curators Association 8175 | -7/Scraptown | Discovered new exit (range 5) 8398 | -7/Scraptown | Entered Factory 8398 | -5/Factory | Evolved 10 slots: Propulsion x4, Utility x2, Weapon x4 8399 | -5/Factory | Identified exit to Factory 8399 | -5/Factory | Identified exit to Upper Caves 8399 | -5/Factory | Attached Flightbrick, gained temporary slots: Utility x3 8399 | -5/Factory | Found Prototype Special Melee Weapon 8399 | -5/Factory | Identified 1B-0RG's Assimilator 8448 | -5/Factory | Assimilating Virus 6a into Collective. 8449 | -5/Factory | Assimilating Virus 6b into Collective. 8452 | -5/Factory | Assimilating Virus 6c into Collective. 8469 | -5/Factory | Assimilating Virus 6d into Collective. 8564 | -5/Factory | Assimilating Serf 6a into Collective. 8638 | -5/Factory | Lost 3 allies 8677 | -5/Factory | Assimilating Soldier 6a into Collective. 8716 | -5/Factory | Assimilating Fighter 6a into Collective. 8739 | -5/Factory | Assimilating Soldier 6b into Collective. 8810 | -5/Factory | Assimilating Sentinel 6a into Collective. 9016 | -5/Factory | Assimilating Sage 6a into Collective. 9116 | -5/Factory | Assimilating Sage 6b into Collective. 9134 | -5/Factory | Assimilating Sage 6c into Collective. 9182 | -5/Factory | Borg Sage 6b assimilated hostile G-50 Soldier 9292 | -5/Factory | Assimilating Conveyor 6a into Collective. 9330 | -5/Factory | Assimilating Serf 6b into Collective. 9357 | -5/Factory | Build established: Assassin 9363 | -5/Factory | Assimilating Virus 6e into Collective. 9369 | -5/Factory | Assimilating Virus 6f into Collective. 9404 | -5/Factory | Lost 7 allies 9521 | -5/Factory | Cargo convoy interrupted 9521 | -5/Factory | Assimilating Freighter 6a into Collective. 9553 | -5/Factory | Assimilating Slayer 6a into Collective. 9575 | -5/Factory | Assimilating Slayer 6b into Collective. 9586 | -5/Factory | Assimilating Archangel 6a into Collective. 9595 | -5/Factory | Assimilating Sage 6d into Collective. 9601 | -5/Factory | Assimilating Chaingunner 6a into Collective. 9635 | -5/Factory | Lost 5 allies 9683 | -5/Factory | Assimilating Slayer 6c into Collective. 9704 | -5/Factory | Assimilating Beamer 6a into Collective. 10113 | -5/Factory | Assimilating Disruptor 6a into Collective. 10128 | -5/Factory | Assimilating Sage 6e into Collective. 10246 | -5/Factory | Assimilating Sage 6f into Collective. 10262 | -5/Factory | Borg Sage 6e assimilated hostile G-50 Soldier 10264 | -5/Factory | Borg Sage 6e assimilated hostile G-50 Soldier 10516 | -5/Factory | Assimilating Conveyor 6b into Collective. 10702 | -5/Factory | Assimilating Conveyor 6c into Collective. 10841 | -5/Factory | Assimilating Conveyor 6d into Collective. 11013 | -5/Factory | Assimilating Conveyor 6e into Collective. 11211 | -5/Factory | Assimilating Sage 6g into Collective. 11318 | -5/Factory | Assimilating Technician 6a into Collective. 11398 | -5/Factory | First assault squad dispatched 11582 | -5/Factory | Assimilating Excavator 6a into Collective. 11651 | -5/Factory | Borg Sage 6g assimilated hostile G-50 Soldier 11654 | -5/Factory | Borg Sage 6g assimilated hostile G-50 Soldier 11656 | -5/Factory | Assimilating Archangel 6b into Collective. 11723 | -5/Factory | Build established: Scavenger-Assassin 11729 | -5/Factory | Entered Upper Caves 11729 | -5/Upper Caves | Accompanied by 7 allies 11932 | -5/Upper Caves | Entered a destroyed Warlord outpost 12027 | -5/Upper Caves | Borg Sage 6g assimilated hostile 9V-XAI(g) 12166 | -5/Upper Caves | Encountered a Warlord checkpoint 12198 | -5/Upper Caves | Assimilating 7K-2DO(M) into Collective. 12284 | -5/Upper Caves | Discovered new exit (range 10) 12645 | -5/Upper Caves | Learned Factory emergency access door positions 12755 | -5/Upper Caves | Borg Sage 6g assimilated hostile G-50 Soldier 12763 | -5/Upper Caves | Borg Sage 6g assimilated hostile G-50 Soldier 13260 | -5/Upper Caves | Identified exit to Upper Caves 13313 | -5/Upper Caves | Entered another Upper Caves area 13313 | -5/Upper Caves | Accompanied by 11 allies 13391 | -5/Upper Caves | Discovered exit to Factory (range 16) 13474 | -5/Upper Caves | Learned Factory emergency access door positions 13617 | -5/Upper Caves | Assimilating Veteran 6a into Collective. 13662 | -5/Upper Caves | Found Alien Artifact 13832 | -5/Upper Caves | Learned Factory stockpile data 14123 | -5/Upper Caves | Discovered new exit (range 16) 14155 | -5/Upper Caves | Identified exit to Warlord 14229 | -5/Upper Caves | Entered Warlord 14229 | -5/Warlord | Accompanied by 9 allies 14442 | -5/Warlord | Assimilating Archangel 6c into Collective. 14835 | -5/Warlord | Visited the Vortex Lab 14848 | -5/Warlord | Found Prototype Energy Cannon 14848 | -5/Warlord | Identified Vortex Driver 14850 | -5/Warlord | Warlord's base attacked by MAIN.C 14854 | -5/Warlord | Found Prototype Energy Gun 14854 | -5/Warlord | Identified Vortex Rail 14922 | -5/Warlord | Rebuked by Warlord 15027 | -5/Warlord | Found Prototype Device 15027 | -5/Warlord | Identified Exp. Phase Shifter 15038 | -5/Warlord | Found Prototype Processor 15038 | -5/Warlord | Identified Exp. Armor Integrity Analyzer 15071 | -5/Warlord | Found Prototype Reactor 15133 | -5/Warlord | Assimilating Archangel 6d into Collective. 15153 | -5/Warlord | Warlord forces counterattacked 15161 | -5/Warlord | Lost 5 allies 15195 | -5/Warlord | Spotted Executioner 15199 | -5/Warlord | Allies destroyed Executioner 15207 | -5/Warlord | Found Prototype Device 15207 | -5/Warlord | Identified Adv. Kinecellerator 15211 | -5/Warlord | Found Prototype Processor 15211 | -5/Warlord | Identified Exp. Core Analyzer 15222 | -5/Warlord | Lost 3 allies 15241 | -5/Warlord | Discovered new exit (range 16) 15262 | -5/Warlord | Spotted Striker 15266 | -5/Warlord | Spotted Executioner 15276 | -5/Warlord | Allies destroyed Striker 15309 | -5/Warlord | Assimilating Assassin 6a into Collective. 15358 | -5/Warlord | Spotted Striker 15358 | -5/Warlord | Spotted Executioner 15362 | -5/Warlord | Spotted Striker 15370 | -5/Warlord | Assimilating Striker into Collective. 15371 | -5/Warlord | Allies destroyed Striker 15372 | -5/Warlord | Core integrity fell below 50% 15382 | -5/Warlord | Assimilating Rainmaker 6a into Collective. 15414 | -5/Warlord | Lost 7 allies 15457 | -5/Warlord | Spotted Executioner 15457 | -5/Warlord | Spotted Executioner 15458 | -5/Warlord | Spotted Striker 15467 | -5/Warlord | Allies destroyed Executioner 15470 | -5/Warlord | Assimilating Executioner into Collective. 15477 | -5/Warlord | Allies destroyed Striker 15498 | -5/Warlord | Lost 10 allies 15525 | -5/Warlord | Warlord base infiltrated, sounded retreat 15526 | -5/Warlord | Build established: Scavenger-Mutant 15547 | -5/Warlord | Entered Proximity Caves 15547 | -4/Proximity Caves | Accompanied by 7 allies 15597 | -4/Proximity Caves | Learned Research stockpile data 15820 | -4/Proximity Caves | Assimilating Assassin 7a into Collective. 15964 | -4/Proximity Caves | Spotted B-86 Titan 15977 | -4/Proximity Caves | Allies destroyed B-86 Titan 16190 | -4/Proximity Caves | Discovered exit to Factory (range 12) 16330 | -4/Proximity Caves | Attracted the attention of an 0b10 outpost 16373 | -4/Proximity Caves | Assimilating Veteran 7a into Collective. 16395 | -4/Proximity Caves | Lost 6 allies 16743 | -4/Proximity Caves | Destroyed Borg Executioner 16788 | -4/Proximity Caves | Entered Factory 16788 | -4/Factory | Accompanied by 3 allies 16788 | -4/Factory | Evolved 2 slots: Power x1, Propulsion x1 16886 | -4/Factory | Garrison activated, responded to threat 16915 | -4/Factory | Identified Dimensional Node Initializer 17066 | -4/Factory | Assimilating Virus 7a into Collective. 17074 | -4/Factory | Assimilating Virus 7b into Collective. 17113 | -4/Factory | Assimilating Conveyor 7a into Collective. 17132 | -4/Factory | Discovered new exit (range 27) 17156 | -4/Factory | Assimilating Warden 7a into Collective. 17166 | -4/Factory | Assimilating Warden 7b into Collective. 17201 | -4/Factory | Assimilating Veteran 7b into Collective. 17213 | -4/Factory | Lost 3 allies 17291 | -4/Factory | Entered Armory 17291 | -4/Armory | Accompanied by 3 allies 17447 | -4/Armory | Assimilating Warrior 7b into Collective. 17473 | -4/Armory | Found Prototype Device 17473 | -4/Armory | Identified Exp. ECM Suite 17545 | -4/Armory | Spotted B-86 Titan 17622 | -4/Armory | Assimilating Eye 7a into Collective. 17676 | -4/Armory | Assimilating Virus 7c into Collective. 17746 | -4/Armory | Assimilating Sentinel 7b into Collective. 17747 | -4/Armory | Assimilating Sentinel 7c into Collective. 17770 | -4/Armory | Assimilating Sage 7a into Collective. 17775 | -4/Armory | Assimilating Sage 7b into Collective. 17800 | -4/Armory | Lost 4 allies 17812 | -4/Armory | Borg Sage 7b assimilated hostile Y-64 Sentinel 17892 | -4/Armory | Borg Sage 7b assimilated hostile X-72 Disruptor 17905 | -4/Armory | Assisted by bots powering up and referring to "LRC-V3" 17976 | -4/Armory | Assimilating Veteran 7l into Collective. 18109 | -4/Armory | Found Prototype Device 18109 | -4/Armory | Identified Adv. EM Shield 18115 | -4/Armory | Identified Vortex Chain Reactor 18120 | -4/Armory | Lost 3 allies 18156 | -4/Armory | Discovered new exit (range 4) 18186 | -4/Armory | Assimilating Sage 7c into Collective. 18215 | -4/Armory | Build established: Commander-Mutant 18245 | -4/Armory | Discovered new exit (range 4) 18270 | -4/Armory | Assimilating Sentinel 7e into Collective. 18404 | -4/Armory | Found Gamma Bomb Array 18407 | -4/Armory | Found Fusion Bomb Launcher 18508 | -4/Armory | Spotted Armor Guard 18508 | -4/Armory | Spotted Armor Guard 18540 | -4/Armory | Allies destroyed Armor Guard 18541 | -4/Armory | First assault squad dispatched 18558 | -4/Armory | Allies destroyed Armor Guard 18564 | -4/Armory | Found Corrupted Prototype Device 18587 | -4/Armory | Borg Sage 7c assimilated hostile G-67 Veteran 18597 | -4/Armory | Borg Sage 7c assimilated hostile G-67 Veteran 18604 | -4/Armory | Assimilating Artificer 7a into Collective. 18626 | -4/Armory | Lost 7 allies 18630 | -4/Armory | Borg Sage 7c assimilated hostile L-61 Swordsman 18634 | -4/Armory | Assimilating Archangel 7a into Collective. 18680 | -4/Armory | Lost 9 allies 18697 | -4/Armory | Assimilating Technician 7a into Collective. 18741 | -4/Armory | Assimilating Sage 7d into Collective. 18742 | -4/Armory | Assimilating Sage 7e into Collective. 18832 | -4/Armory | Entered Lab 18832 | -4/Lab | Accompanied by 2 allies 18832 | -4/Lab | Discovered new exit (range 9) 18847 | -4/Lab | Unable to decrypt terminal 18848 | -4/Lab | Detected for breach 18849 | -4/Lab | Gained access to the hidden lab's interior 18854 | -4/Lab | Confronted by A5 18881 | -4/Lab | Destroyed A5 18890 | -4/Lab | Build established: Mutant 18983 | -4/Lab | Found Alien Artifact 18983 | -4/Lab | Identified Integrated Dissipator 18983 | -4/Lab | Installed Integrated Dissipator, increased core heat dissipation (+20) 18988 | -4/Lab | Found Alien Artifact 18988 | -4/Lab | Identified Core Expander 18988 | -4/Lab | Installed Core Expander, added new Power slot 19063 | -4/Lab | Found Prototype Device 19063 | -4/Lab | Identified AEGIS Remote Shield 19068 | -4/Lab | Found Prototype Energy Cannon 19098 | -4/Lab | Found Alien Artifact 19125 | -4/Lab | Found Prototype Hackware 19163 | -4/Lab | Identified Exp. Weapon Cycler 19169 | -4/Lab | Found Prototype Special Weapon 19231 | -4/Lab | Found Prototype Hackware 19243 | -4/Lab | Found Prototype Hackware 19267 | -4/Lab | Entered Research 19267 | -3/Research | Accompanied by 2 allies 19267 | -3/Research | Evolved 2 slots: Propulsion x2 19268 | -3/Research | Identified exit to Testing 19380 | -3/Research | Assimilating Veteran 8a into Collective. 19468 | -3/Research | Borg Sage 7d assimilated hostile Y-72 Warden 19582 | -3/Research | Assimilating Master 8a into Collective. 19588 | -3/Research | Assimilating Master 8b into Collective. 19652 | -3/Research | Intercept squad dispatched 19664 | -3/Research | Spotted Tracker 19665 | -3/Research | Spotted Tracker 19674 | -3/Research | Allies destroyed Tracker 19675 | -3/Research | Spotted Combat Programmer 19678 | -3/Research | Assimilating Tracker into Collective. 19683 | -3/Research | Allies destroyed Combat Programmer 19688 | -3/Research | Spotted Combat Programmer 19707 | -3/Research | Destroyed Combat Programmer 19732 | -3/Research | Cargo convoy interrupted 19744 | -3/Research | Assimilating Master 8c into Collective. 19767 | -3/Research | First assault squad dispatched 19769 | -3/Research | Assimilating Master 8d into Collective. 19788 | -3/Research | Found Prototype Processor 19788 | -3/Research | Identified Exp. Target Analyzer 19801 | -3/Research | Found Prototype Processor 19801 | -3/Research | Identified Exp. Targeting Computer 19882 | -3/Research | Entered Testing 19882 | -3/Testing | Accompanied by 7 allies 19901 | -3/Testing | Found Prototype Device 19901 | -3/Testing | Identified Exp. Focal Shield 19945 | -3/Testing | Found Prototype Device 19945 | -3/Testing | Identified Exp. Thermal Defense Suite 19972 | -3/Testing | Borg Master 8a assimilated hostile W-44 Eye 19989 | -3/Testing | Borg Master 8d assimilated hostile G-67 Veteran 20008 | -3/Testing | Borg Master 8c assimilated hostile S-43 Plague 20033 | -3/Testing | Identified Quantum Router 20037 | -3/Testing | Found AEGIS Remote Shield 20188 | -3/Testing | Spotted Striker 20193 | -3/Testing | Spotted Striker 20201 | -3/Testing | Assimilating Beamer 8a into Collective. 20201 | -3/Testing | Borg Master 8a assimilated hostile X-77 Beamer 20205 | -3/Testing | Spotted Alpha 7 20208 | -3/Testing | Assimilating Striker into Collective. 20216 | -3/Testing | Allies destroyed Borg Striker 20216 | -3/Testing | Allies destroyed Striker 20216 | -3/Testing | Spotted PP-LJWOZ0JVND 20221 | -3/Testing | Allies destroyed Alpha 7 20243 | -3/Testing | Allies destroyed PP-LJWOZ0JVND 20308 | -3/Testing | Intercept squad dispatched 20310 | -3/Testing | Spotted Tracker 20311 | -3/Testing | Spotted Tracker 20315 | -3/Testing | Lost 7 allies 20324 | -3/Testing | Borg Master 8c assimilated hostile Tracker 20337 | -3/Testing | Assimilating Tracker into Collective. 20349 | -3/Testing | Spotted Combat Programmer 20365 | -3/Testing | Lost 4 allies 20389 | -3/Testing | System corruption reached 10% 20389 | -3/Testing | Assimilating Master 8e into Collective. 20390 | -3/Testing | Assimilating Master 8f into Collective. 20404 | -3/Testing | Destroyed Combat Programmer 20416 | -3/Testing | Assimilating Veteran 8d into Collective. 20419 | -3/Testing | Borg Master 8e assimilated hostile G-67 Veteran 20455 | -3/Testing | Assimilating Conveyor 8a into Collective. 20494 | -3/Testing | Discovered new exit (range 22) 20611 | -3/Testing | Found Prototype Hackware 20642 | -3/Testing | Entered Research 20642 | -2/Research | Accompanied by 4 allies 20642 | -2/Research | Evolved 2 slots: Propulsion x1, Weapon x1 20643 | -2/Research | Identified Warp Cannon 20741 | -2/Research | Borg Master 8e assimilated hostile Y-72 Warden 20766 | -2/Research | Assimilating Conveyor 9a into Collective. 20988 | -2/Research | Found Prototype Launcher 20988 | -2/Research | Identified Hellfire Missile Launcher 21142 | -2/Research | First assault squad dispatched 21183 | -2/Research | Spotted B-90 Cyclops 21198 | -2/Research | Assimilating Master 9a into Collective. 21217 | -2/Research | Allies destroyed B-90 Cyclops 21251 | -2/Research | Borg Master 9a assimilated hostile E-15 Imp 21259 | -2/Research | Borg Master 8e assimilated hostile G-73 Enforcer 21314 | -2/Research | Spotted B-90 Cyclops 21319 | -2/Research | Allies destroyed B-90 Cyclops 21360 | -2/Research | Borg Master 9a assimilated hostile G-73 Enforcer 21394 | -2/Research | Garrison activated, responded to threat 21471 | -2/Research | Discovered new exit (range 11) 21576 | -2/Research | Build established: Scavenger-Mutant 21577 | -2/Research | Identified System Mapper 21578 | -2/Research | Identified exit to Quarantine 21595 | -2/Research | Spotted B-90 Cyclops 21600 | -2/Research | Allies destroyed B-90 Cyclops 21668 | -2/Research | Assimilating Champion 9a into Collective. 21695 | -2/Research | Intercept squad dispatched 21700 | -2/Research | Assimilating Archangel 9a into Collective. 21712 | -2/Research | Spotted Tracker 21716 | -2/Research | Spotted Tracker 21729 | -2/Research | Spotted Combat Programmer 21731 | -2/Research | Assimilating Tracker into Collective. 21745 | -2/Research | Assimilating Tracker into Collective. 21751 | -2/Research | Spotted Combat Programmer 21761 | -2/Research | System corruption reached 10% 21763 | -2/Research | Assimilating Enforcer 9c into Collective. 21783 | -2/Research | Lost 9 allies 21811 | -2/Research | Destroyed Combat Programmer 21827 | -2/Research | System corruption reached 30% 21837 | -2/Research | Destroyed Combat Programmer 21865 | -2/Research | Assimilating Master 9b into Collective. 21871 | -2/Research | Assimilating Master 9c into Collective. 21920 | -2/Research | Assimilating Conveyor 9b into Collective. 21922 | -2/Research | Assimilating Conveyor 9c into Collective. 21940 | -2/Research | Spotted B-90 Cyclops 21956 | -2/Research | Allies destroyed B-90 Cyclops 22104 | -2/Research | Assimilating Master 9d into Collective. 22105 | -2/Research | Assimilating Master 9e into Collective. 22130 | -2/Research | Borg Master 9d assimilated hostile H-88 Terminator 22183 | -2/Research | Garrison activated, responded to threat 22224 | -2/Research | High security lockdown imminent 22224 | -2/Research | Assimilating Enforcer 9d into Collective. 22235 | -2/Research | Assimilating Master 9f into Collective. 22301 | -2/Research | Assimilating Enforcer 9e into Collective. 22304 | -2/Research | High security lockdown engaged 22318 | -2/Research | Entered Quarantine 22337 | -2/Quarantine | Found Alien Artifact 22378 | -2/Quarantine | Identified Core Reset Matrix 22378 | -2/Quarantine | Identified Transdimensional Reconstructor 22378 | -2/Quarantine | Used Core Reset Matrix 22382 | -2/Quarantine | Detected hypermatrix surge 22382 | -2/Quarantine | Sensed 8 artifacts in vicinity 22692 | -2/Quarantine | Assimilating Machinist 9a into Collective. 22706 | -2/Quarantine | Assimilating Master 9g into Collective. 22709 | -2/Quarantine | Assimilating Master 9h into Collective. 22731 | -2/Quarantine | Build established: Alien-Mutant 22750 | -2/Quarantine | Spotted Alpha 7 22778 | -2/Quarantine | Allies destroyed Alpha 7 22784 | -2/Quarantine | Garrison activated, responded to threat 22796 | -2/Quarantine | Borg Master 9g assimilated hostile G-73 Enforcer 22803 | -2/Quarantine | Found Sigix Terminator 22807 | -2/Quarantine | Borg Master 9g assimilated hostile G-73 Enforcer 22826 | -2/Quarantine | Assimilating Conveyor 9d into Collective. 22924 | -2/Quarantine | Intercept squad dispatched 22931 | -2/Quarantine | Spotted Tracker 22932 | -2/Quarantine | Spotted Tracker 22935 | -2/Quarantine | Spotted Combat Programmer 22937 | -2/Quarantine | Assimilating Tracker into Collective. 22939 | -2/Quarantine | Destroyed Tracker 22951 | -2/Quarantine | Allies destroyed Combat Programmer 22951 | -2/Quarantine | Spotted Combat Programmer 22959 | -2/Quarantine | Destroyed Combat Programmer 23068 | -2/Quarantine | First assault squad dispatched 23099 | -2/Quarantine | Borg Master 9g assimilated hostile G-73 Enforcer 23107 | -2/Quarantine | Warped through subspace 23111 | -2/Quarantine | High security lockdown imminent 23112 | -2/Quarantine | Discovered new exit (range 7) 23117 | -2/Quarantine | Scanned by Researcher 23141 | -2/Quarantine | Entered Access 23141 | -1/Access | Evolved 2 slots: Propulsion x2 23180 | -1/Access | Identified Exp. System Shield 23184 | -1/Access | Identified Exp. Hacking Suite 23296 | -1/Access | Assimilating Warden 10a into Collective. 23306 | -1/Access | Identified exit to Command 23360 | -1/Access | Spotted B-99 Colossus 23391 | -1/Access | First assault squad dispatched 23420 | -1/Access | Assimilating Eye 10a into Collective. 23432 | -1/Access | Assimilating Enforcer 10a into Collective. 23433 | -1/Access | Assimilating Enforcer 10b into Collective. 23438 | -1/Access | Assimilating Enforcer 10c into Collective. 23439 | -1/Access | Assimilating Enforcer 10d into Collective. 23489 | -1/Access | Lost 4 allies 23591 | -1/Access | Assimilating Terminator 10a into Collective. 23593 | -1/Access | Assimilating Terminator 10b into Collective. 23611 | -1/Access | Discovered new exit (range 4) 23677 | -1/Access | Garrison activated, responded to threat 23727 | -1/Access | Assimilating Warden 10b into Collective. 23793 | -1/Access | Intercept squad dispatched 23831 | -1/Access | Spotted Tracker 23833 | -1/Access | Spotted Tracker 23836 | -1/Access | Assimilating Tracker into Collective. 23838 | -1/Access | Assimilating Tracker into Collective. 23906 | -1/Access | Spotted Combat Programmer 23923 | -1/Access | Entered Command 24042 | -1/Command | Assimilating Warden 10c into Collective. 24051 | -1/Command | Assimilating Warden 10d into Collective. 24157 | -1/Command | Assimilating Terminator 10c into Collective. 24159 | -1/Command | Assimilating Terminator 10d into Collective. 24285 | -1/Command | Spotted B-99 Colossus 24312 | -1/Command | Allies destroyed B-99 Colossus 24484 | -1/Command | Assimilating Terminator 10e into Collective. 24492 | -1/Command | Assimilating Master 10a into Collective. 24523 | -1/Command | Borg Master 10a assimilated hostile W-44 Eye 24595 | -1/Command | Borg Master 10a assimilated hostile G-73 Enforcer 24598 | -1/Command | Assimilating Enforcer 10f into Collective. 24684 | -1/Command | Assimilating Enforcer 10e into Collective. 24796 | -1/Command | Spotted Combat Programmer 24796 | -1/Command | Spotted Combat Programmer 24810 | -1/Command | Destroyed Combat Programmer 24814 | -1/Command | Destroyed Combat Programmer 24819 | -1/Command | Spotted M Guard 24819 | -1/Command | Spotted M Guard 24822 | -1/Command | Destroyed M Guard 24842 | -1/Command | Destroyed M Guard 24842 | -1/Command | All MAIN.C guards destroyed 24868 | -1/Command | Lost 4 allies 24923 | -1/Command | First assault squad dispatched 24949 | -1/Command | Met MAIN.C 24953 | -1/Command | System corruption reached 10% 24955 | -1/Command | 0b10 Conduit disabled 25000 | -1/Command | Allies destroyed MAIN.C Shell 25002 | -1/Command | MAIN.C activated Command garrisons 25068 | -1/Command | Allies destroyed MAIN.C 25095 | -1/Command | Lost 12 parts (2p7n2u1w) 25107 | -1/Command | Assimilating Master 10b into Collective. 25185 | -1/Command | Assimilating Swordsman 10a into Collective. 25269 | -1/Command | Core integrity fell below 50% 25270 | -1/Command | Discovered new exit (range 52) 25270 | -1/Command | Discovered new exit (range 94) 25270 | -1/Command | Extracted map data and part IDs from MAIN.C's data core 25279 | -1/Command | Fired Sigix Terminator 25280 | -1/Command | Emitted hypermatrix ping 25280 | -1/Command | Core integrity fell below 20% 25285 | -1/Command | Assembled emerged from beneath the floor 25310 | -1/Command | Lost 4 parts (4n) 25955 | *** | Heading to fleet! Last Messages --------------- 25547_ S1:CJAC=7ISVR1R%HYGOVSZBHQKND,7P31OXR 25563_ /CE0SFA9O FR%6,A7HR,Z0=LA